Cogmind - Beta 16.1 @@@ ROGUE MODE // 2026.01.25 @ 16:11:51 Player: f3-rnm Result: Escaped! Performance ------------- Evolutions (9) 4500 Regions Visited (27) 5400 Robots Destroyed (164) 820 Value Destroyed (6124) 6124 Prototype IDs (42) 840 Alien Tech Used (0) 0 Bonus (20031) 20031 TOTAL SCORE: 37715 Bonus ------- Triggered High Security 1000 High Alert Combat Kills 1737 Follower Combat Kills 11511 Entered Garrisons 200 Registered with UFD 300 Built Enhanced Grunts 300 A7 Reached Mainframe 300 Met R17 at Cetus 500 Met R17 at Research 2000 Scanned by Researcher 500 Win 3000 Friendly Fire -1317 Cogmind --------- Core Integrity 609/1600 Matter 48/300 Energy 85/100 System Corruption 8% Temperature Cool (3) Movement Flying (29) Location To Epsilon Eridani Parts ------- > --- POWER (4) -------- (None) > --- PROPULSION (8) --- Improved Antigrav System Combat Linear Gravjet Electron Diverter Electron Diverter Electron Diverter > --- UTILITY (8) ------ Improved Targeting Computer Graphene Brace > --- WEAPON (5) ------- (None) > --- INVENTORY (5) ---- Particle Reactor Phase Gun Enhanced Nova Cannon Enhanced Gamma Bomb Array Peak State ------------ > --- POWER ------------ Quantum Reactor Quantum Reactor > --- PROPULSION ------- Advanced Myomer Leg Improved Thunder Leg Centrium Leg Cooled Antigrav System Cooled Antigrav System Cooled Antigrav System Cooled Antigrav System > --- UTILITY ---------- Large Storage Unit Matter Compressor Improved Transmission Jammer Heavy Regenerative Plating Advanced Remote Force Field Improved Hacking Suite > --- WEAPON ----------- 1B-0RG's Assimilator > --- INVENTORY -------- Improved Energy Well Improved Energy Well Matter Compressor Experimental Matter Compressor Advanced EM Shield Advanced Remote Force Field Long-range Tractor Beam Phasing AFG Improved Potential Cannon Fusion Bomb Launcher Z-bomb Delivery System Advanced Remote Datajack IN-MT5's Pitchfork "Insurrection" Makeshift Hammer [Rating: 197] Favorites ----------- Power Quantum Reactor Engine Heavy Ion Engine Power Core Neutrino Core Reactor Quantum Reactor Propulsion Flexi-carbon Leg Treads Centrium Heavy Treads Leg Flexi-carbon Leg Wheel Wheel Hover Unit Antigrav System Flight Unit Xenon Bombardment Thruster Utility Matter Compressor Device Improved Transmission Jammer Storage Matter Compressor Processor Enhanced Optical Array Hackware Improved Hacking Suite Protection Core Shielding Weapon 1B-0RG's Assimilator Energy Gun Improved Medium Laser Energy Cannon Cooled Particle Cannon Ballistic Gun Heavy Assault Rifle Ballistic Cannon Magnetic Acceleration Cannon Launcher Micro-nuke Launcher Special Weapon IN-MT5's Pitchfork "Insurrection" Impact Weapon Power Maul Slashing Weapon Chainsword Piercing Weapon Lance Special Melee Weapon 1B-0RG's Assimilator Build | -11 -10 -9 -9 -9 -9 -6 -6 -6 -6 -6 -6 -5 -5 -5 -5 -5 -5 -5 -4 -4 -4 -4 -3 -3 -3 -2 -1 ------- Run | Yrd Mat Mat Sto Rec Scr Fac Was Fac Low Low Zio Pro Fac Ext Cet Arc Hub Gar Fac Upp Upp War Pro Res Tes Res Acc Slots Evolved 18 | . . 2 . . . 6 . . . . . . 2 . . . . . 2 . . . . 2 . 2 2 Power 3 | . . . . . . . . . . . . . . . . . . . . . . . . 1 . . 2 Propulsion 6 | . . . . . . 2 . . . . . . 1 . . . . . 1 . . . . 1 . 1 . Utility 6 | . . . . . . 3 . . . . . . 1 . . . . . 1 . . . . . . 1 . Weapon 3 | . . 2 . . . 1 . . . . . . . . . . . . . . . . . . . . . Parts Attached 205 | 6 2 7 20 1 16 26 5 16 5 6 5 2 7 4 5 1 . 9 1 . 1 . 1 13 14 13 19 Power 21 | 1 . 1 4 . 2 2 1 . . . 1 . 1 1 1 . . 1 . . . . . 1 . 3 1 Engine 7 | 1 . . 4 . 1 1 . . . . . . . . . . . . . . . . . . . . . Core 4 | . . 1 . . 1 . . . . . . . 1 1 . . . . . . . . . . . . . Reactor 10 | . . . . . . 1 1 . . . 1 . . . 1 . . 1 . . . . . 1 . 3 1 Propulsion 70 | 2 . 1 5 . 3 9 1 4 . 4 1 2 3 2 2 1 . 3 . . . . 1 6 7 3 10 Treads 5 | 2 . 1 . . . . . . . . . . . . 2 . . . . . . . . . . . . Leg 31 | . . . 5 . . . . . . 4 1 2 . . . . . 3 . . . . 1 3 5 3 4 Wheel 2 | . . . . . . 1 . . . . . . . . . 1 . . . . . . . . . . . Hover 26 | . . . . . . 8 1 4 . . . . 3 2 . . . . . . . . . 3 2 . 3 Flight 6 | . . . . . 3 . . . . . . . . . . . . . . . . . . . . . 3 Utility 55 | 1 2 3 2 1 5 8 . 1 4 2 2 . 3 . 2 . . 2 1 . 1 . . 5 2 5 3 Device 21 | . . 3 . . 2 . . . 3 1 2 . 1 . 1 . . . 1 . 1 . . 2 . 3 1 Storage 15 | 1 1 . 1 . 1 3 . . 1 1 . . . . . . . 2 . . . . . 1 1 . 2 Processor 6 | . 1 . . . . 3 . 1 . . . . . . . . . . . . . . . . . 1 . Hackware 7 | . . . . 1 1 2 . . . . . . 2 . . . . . . . . . . 1 . . . Protection 6 | . . . 1 . 1 . . . . . . . . . 1 . . . . . . . . 1 1 1 . Artifact . | . . . . . . . . . . . . . . . . . . . . . . . . . . . . Weapon 59 | 2 . 2 9 . 6 7 3 11 1 . 1 . . 1 . . . 3 . . . . . 1 5 2 5 Energy Gun 5 | . . 1 . . . . . 1 . . . . . . . . . . . . . . . . . . 3 Energy Cannon 8 | . . . . . 1 . . 3 . . . . . . . . . 1 . . . . . . 1 . 2 Ballistic Gun 15 | 2 . . 8 . 1 . . 4 . . . . . . . . . . . . . . . . . . . Ballistic Cannon 7 | . . 1 1 . . . 2 . . . . . . . . . . 2 . . . . . . . 1 . Launcher 6 | . . . . . 1 . . 1 . . . . . . . . . . . . . . . . 3 1 . Special Weapon 8 | . . . . . 2 3 . . . . 1 . . 1 . . . . . . . . . . 1 . . Impact Weapon 7 | . . . . . 1 2 . 2 1 . . . . . . . . . . . . . . 1 . . . Slashing Weapon 1 | . . . . . . 1 . . . . . . . . . . . . . . . . . . . . . Piercing Weapon 1 | . . . . . . . 1 . . . . . . . . . . . . . . . . . . . . Special Melee Weapon 1 | . . . . . . 1 . . . . . . . . . . . . . . . . . . . . . Unidentified Prototypes 31 | . . 1 3 . . 2 . 4 . . 4 . . . 3 . . . . . . . . 4 7 1 2 Corrupted Parts 10 | . . . . 1 . 1 . . . 1 1 . . . 2 . . . . . . . . . 1 3 . System Corruption 45 | . . . . 4 . 2 . . . 3 7 . . . 5 . . . . . . . . . 5 19 . Parts Lost 58 | . . 3 5 . . 5 . 1 . 2 1 4 2 1 5 . . 4 . . . . . . . 9 16 Power 11 | . . . 1 . . 1 . . . . . 1 1 1 . . . 1 . . . . . . . 3 2 Propulsion 27 | . . 1 1 . . 3 . 1 . 1 . 2 . . 5 . . 1 . . . . . . . 4 8 Utility 11 | . . . 1 . . 1 . . . 1 . 1 1 . . . . 2 . . . . . . . . 4 Weapon 9 | . . 2 2 . . . . . . . 1 . . . . . . . . . . . . . . 2 2 Highest Loss Streak 8 | . . 2 5 . . 3 . 1 . 2 1 3 1 1 3 . . 2 . . . . . . . 2 8 To Critical Strikes . | . . . . . . . . . . . . . . . . . . . . . . . . . . . . Average Backups 10 | 1 5 13 18 19 12 2 5 5 9 10 10 9 10 9 10 10 11 11 10 10 10 11 12 10 11 12 6 Power . | . 1 1 . . . . . . . . . . . . 1 2 2 1 1 1 1 1 1 . . . 1 Propulsion 1 | . 2 4 5 4 3 . . . . . 1 . . 1 . . . . . . . . . . . . . Utility 5 | . 1 6 10 15 8 . 2 1 3 4 4 4 4 4 4 5 5 6 5 6 7 8 7 8 7 7 2 Weapon 2 | . . . 2 . . . 2 3 5 5 4 4 4 3 3 2 3 2 2 2 1 1 3 1 3 2 2 Tool/Special . | . . . . . . . . . . . . . . . . . . . . . . . . . . . . Unused Backups 51 | . . 3 7 3 17 . . 2 1 . 2 . 3 . . . . 3 . . 1 . 1 2 2 . 4 Power 3 | . . . 1 . 1 . . . . . . . . . . . . 1 . . . . . . . . . Propulsion 9 | . . 3 1 . 2 . . 1 1 . . . . . . . . . . . . . . . . . 1 Utility 33 | . . . 4 3 12 . . 1 . . 2 . 2 . . . . 1 . . 1 . 1 2 2 . 2 Weapon 4 | . . . 1 . . . . . . . . . 1 . . . . 1 . . . . . . . . 1 Tool/Special 2 | . . . . . 2 . . . . . . . . . . . . . . . . . . . . . . Average Slot Usage (%) 70 | . 94 87 95 100 58 62 74 82 70 68 70 67 72 71 58 62 64 59 60 62 65 68 66 80 77 77 43 Engine 1 | . 14 9 9 11 3 2 . . . . . . . . . . . . . . . . . . . . . Reactor 3 | . . . . . . . 4 6 6 5 6 6 1 . 2 5 5 3 5 5 5 5 5 8 9 7 3 Treads 1 | . 28 22 . . . . . . . . . . . . 5 11 11 8 . . . . . . . . . Leg 13 | . . . 21 22 14 . . . . 17 26 24 21 1 . . . 4 15 15 15 15 18 21 15 27 15 Hover 5 | . . . . . . 11 26 25 26 7 . . 3 26 8 . . . . . . . . 7 16 . 2 Flight 1 | . . . . . 7 2 . . . . . . . . . . . . . . . . . . . . 1 Device 5 | . . 10 . . 8 . . . 2 7 6 6 4 5 4 5 5 . 4 5 7 10 10 10 9 11 4 Storage 11 | . 14 11 11 11 7 9 13 13 13 16 20 16 11 11 11 11 11 16 15 15 12 10 13 10 9 8 4 Processor 4 | . 8 . . . . 11 13 13 7 6 6 6 5 5 5 5 5 5 5 5 5 5 5 4 . . 4 Hackware 4 | . . . . . 1 8 6 6 6 1 . . 10 11 11 11 11 6 5 5 5 5 5 4 4 4 2 Protection 1 | . . . 10 10 2 . . . . . . . . . . . . . 5 5 4 5 2 1 3 3 1 Energy Cannon 1 | . . . . . 1 . . 7 1 2 2 . . . . 2 . 2 . . . . . . . 3 1 Ballistic Gun 4 | . 28 20 38 44 2 . . 1 . . . . . . . . . . . . . . . . . . . Special Weapon 1 | . . . . . 4 4 3 . . . . . 2 . . . . . 1 . . . . 1 . 1 1 Impact Weapon 1 | . . . . . 3 5 . 4 4 . . 1 1 3 . 4 5 . . . . . . 2 2 2 . Peak Build Rating 197 | 6 7 15 28 30 33 108 118 119 119 113 75 116 132 132 150 144 96 145 153 154 109 109 161 188 197 191 186 Average Rating 75 | 4 6 11 21 27 17 46 69 68 68 58 56 99 82 84 105 98 90 106 98 128 104 109 146 152 161 167 88 On Entrance 78 | . 6 6 12 28 28 30 50 69 63 60 56 67 116 77 74 144 90 90 85 95 100 109 109 105 188 166 169 Avg Prop Armor Cover (%) 15 | . . . . . . 9 11 . . 20 . . 5 18 8 33 33 25 . . . . . 8 6 2 28 Naked Turns . | . . . . . . . . . . . . . . . . . . . . . . . . . . . . Heaviest Build 161 | 13 28 39 62 62 54 70 86 82 98 97 58 101 97 81 107 101 49 102 66 113 73 73 109 140 160 161 151 Greatest Support 236 | 40 40 40 34 30 30 39 45 45 42 86 96 90 85 55 160 160 10 160 120 120 120 120 140 172 176 176 236 Greatest Overweight (x) 10 | . . 1 2 2 2 3 1 1 2 2 . 1 1 7 2 4 4 10 . . . . . 6 5 1 2 Average Overweight (x) . | . . . 1 2 . . . . . . . . . 1 . . 4 3 . . . . . . 1 . . Largest Inventory Capacity 20 | 8 15 15 20 20 20 10 10 10 15 15 15 15 15 15 15 15 15 15 15 15 15 15 15 15 15 15 15 Average Capacity 14 | 7 14 15 19 20 14 7 10 10 13 15 15 15 15 15 15 15 15 15 15 15 15 15 15 15 15 15 8 Most Carried 20 | 3 8 15 20 20 20 10 10 10 15 15 15 15 15 15 15 15 15 15 15 15 15 15 15 15 15 15 15 Average Carried 13 | 1 5 13 18 19 12 6 9 9 13 14 14 11 13 12 12 13 14 13 14 12 14 15 12 12 14 13 6 Final Capacity 20 | 8 15 15 20 20 5 10 10 10 15 15 15 15 15 15 15 15 15 15 15 15 15 15 15 15 15 15 5 Final Carried 20 | 3 8 15 20 20 5 10 10 10 15 15 15 12 14 14 11 15 15 15 15 15 15 15 15 13 15 13 4 Class Distribution -------------------- 44% | Mutant 15% | Hacker-Mutant 14% | Commander-Mutant 8% | Scavenger-Mutant 8% | Tank 4% | Scavenger-Tank Dominant Class ---------------- Mutant | -10/Materials Tank | -9/Materials Tank | -9/Storage Tank | -9/Recycling Mutant | -9/Scraptown Mutant | -6/Factory Mutant | -6/Waste Mutant | -6/Factory Mutant | -6/Lower Caves Mutant | -6/Lower Caves Mutant | -6/Zion Mutant | -5/Proximity Caves Hacker-Mutant | -5/Factory Scavenger-Mutant | -5/Extension Hacker-Mutant | -5/Cetus Hacker-Mutant | -5/Archives Hacker-Mutant | -5/Hub_04(d) Commander-Mutant | -5/Garrison Commander-Mutant | -4/Factory Commander-Mutant | -4/Upper Caves Commander-Mutant | -4/Upper Caves Commander-Mutant | -4/Warlord Commander-Mutant | -3/Proximity Caves Commander-Mutant | -3/Research Mutant | -3/Testing Scavenger-Tank | -2/Research Mutant | -1/Access Resources | -11 -10 -9 -9 -9 -9 -6 -6 -6 -6 -6 -6 -5 -5 -5 -5 -5 -5 -5 -4 -4 -4 -4 -3 -3 -3 -2 -1 ----------- Run | Yrd Mat Mat Sto Rec Scr Fac Was Fac Low Low Zio Pro Fac Ext Cet Arc Hub Gar Fac Upp Upp War Pro Res Tes Res Acc Matter Collected 23265 | 204 . 423 1388 . 715 839 1558 1143 928 1496 524 414 1226 576 587 743 146 1603 630 861 406 . 1424 2282 1450 1586 113 Remotely 656 | . . . . . . . . . . . . . . . . . . . . . . . . . . 656 . Salvage Created 6950 | . 98 526 1329 . . 767 121 300 279 79 140 . 416 85 62 255 8 245 50 43 . . . 119 226 1439 363 Parts 282 | . 7 25 95 . . 12 6 14 . 1 6 . 1 5 4 11 . 1 1 1 . . . . 9 66 17 Haulers Intercepted 9 | . . . 3 . . 1 . 1 . 1 . . . . . . . . . . . . . 1 . 2 . Recyclers Shooed 7 | . . . 3 . . 1 . 3 . . . . . . . . . . . . . . . . . . . Parts Field Recycled . | . . . . . . . . . . . . . . . . . . . . . . . . . . . . Retrieved Matter . | . . . . . . . . . . . . . . . . . . . . . . . . . . . . Parts Self-Destructed 105 | . . . . . . . . . 3 34 . 9 . . . . . . . 20 10 . 29 . . . . Prevented 1 | . . . . . . . . . . 1 . . . . . . . . . . . . . . . . . Parts Restored . | . . . . . . . . . . . . . . . . . . . . . . . . . . . . Kills | -11 -10 -9 -9 -9 -9 -6 -6 -6 -6 -6 -6 -5 -5 -5 -5 -5 -5 -5 -4 -4 -4 -4 -3 -3 -3 -2 -1 ------- Run | Yrd Mat Mat Sto Rec Scr Fac Was Fac Low Low Zio Pro Fac Ext Cet Arc Hub Gar Fac Upp Upp War Pro Res Tes Res Acc Combat Hostiles Destroyed 88 | . 2 10 22 . . 4 . 6 . . 1 . . 1 . . . 3 1 . . . . . 2 30 6 Melee 5 | . . . . . . 4 . . . . . . . . . . . . . . . . . . . 1 . Guns 31 | . 2 6 21 . . . . . . . . . . . . . . . . . . . . . . . 2 Cannons 22 | . . 4 1 . . . . 2 . . 1 . . . . . . 3 . . . . . . . 8 3 AOE 24 | . . . . . . . . 4 . . . . . . . . . . . . . . . . 1 18 1 Classes Destroyed 19 | . 1 3 5 . . 3 . 1 . . 1 . . . . . . 1 . . 1 . . . 1 2 . Worker 24 | . . . 3 . . 2 2 2 1 . . . 1 . 1 . 1 . . . . . . . 4 7 . Builder 8 | . . . 3 . . . . . . . . . . 1 . . . . . . . . . 1 1 2 . Tunneler 1 | . . . 1 . . . . . . . . . . . . . . . . . . . . . . . . Hauler 9 | . . . 3 . . 1 . 1 . 1 . . . . . . . . . . . . . 1 . 2 . Recycler 12 | . . 1 2 . . 3 . . . . . . 3 . . . . . . . . . . . . 3 . Mechanic 2 | . . . . . . . . . . . . . . . . . . . . . 1 . . . . 1 . Operator 9 | . . . . . . 1 . . . . . . . . . 8 . . . . . . . . . . . Watcher 3 | . . 1 . . . 1 . . . . . . . . . . . . . . . . . . . 1 . Swarmer 11 | . . . 6 . . 1 . 4 . . . . . . . . . . . . . . . . . . . Grunt 41 | . 2 9 5 . . 1 . 1 . . . . . . . . . 2 1 . . . . . 1 15 4 Brawler 1 | . . . . . . . . . . . . . . . . . . . . . . . . . . 1 . Duelist 3 | . . . . . . 1 . . . . . . . . . . . . . . . . . . . 2 . Researcher 1 | . . . . . . . . . . . . . . . . . . . . . . . . . 1 . . Sentry 16 | . . 1 11 . . . . . . . . . . 1 . . . . . . . . . . . 3 . Hunter 8 | . . . . . . 1 . . . . . . . . . . . . . . . . . . 2 5 . Programmer 6 | . . . . . . . . 1 . . . . . . . . . . . . . . . . . 3 2 Q-Series 1 | . . . . . . . . . . . . . . . . . . . . . . . . . . 1 . Behemoth 2 | . . . . . . . . . . . . . . . . . . 2 . . . . . . . . . Cetus Guard 1 | . . . . . . . . . . . . . . . 1 . . . . . . . . . . . . Zionite 2 | . . . . . . . . . . . 2 . . . . . . . . . . . . . . . . Decomposer 6 | . . . . . . . . . 3 . . . . . . . . . . 3 . . . . . . . Packrat 3 | . . . . . . . . . 3 . . . . . . . . . . . . . . . . . . Wasp 1 | . . . . . . . 1 . . . . . . . . . . . . . . . . . . . . Thug 1 | . . . . . . . 1 . . . . . . . . . . . . . . . . . . . . Best Kill Streak 8 | . 2 4 8 . . 3 . 4 . 1 2 . 2 1 . 2 1 1 1 . . . . 1 3 7 4 Combat Bots Only 8 | . 2 4 8 . . 2 . 4 . . 1 . . 1 . . . 1 1 . . . . . 1 4 4 Max Kills in Single Turn 6 | . 1 1 2 . . 1 1 4 1 1 1 . 1 1 1 1 1 1 1 1 1 . . 1 6 4 1 Gunslinging 1 | . . . 1 . . . . . . . . . . . . . . . . . . . . . . . . Exploded 4 | . . . . . . . . 4 . . . . . . . . . . . . . . . . 1 4 1 Melee 1 | . . . . . . 1 . . . . . . . . . . . . . . . . . . . 1 . Uniques/NPCs Destroyed 1 | . . . . . . . . . . . 1 . . . . . . . . . . . . . . . . NK-0LA (-6/Zion) Combat | -11 -10 -9 -9 -9 -9 -6 -6 -6 -6 -6 -6 -5 -5 -5 -5 -5 -5 -5 -4 -4 -4 -4 -3 -3 -3 -2 -1 -------- Run | Yrd Mat Mat Sto Rec Scr Fac Was Fac Low Low Zio Pro Fac Ext Cet Arc Hub Gar Fac Upp Upp War Pro Res Tes Res Acc Hostile Shots Fired 1220 | . 14 84 137 . 3 45 . 28 3 15 72 16 16 22 6 . 3 91 6 16 12 . 42 8 53 232 296 Missed 409 | . 5 18 37 . 2 16 . 14 . 6 34 3 5 6 . . 1 30 2 7 4 . 19 2 19 71 108 Hits 811 | . 9 66 100 . 1 29 . 14 3 9 38 13 11 16 6 . 2 61 4 9 8 . 23 6 34 161 188 Melee 11 | . . . . . . 1 . . . . 1 . . . . . . 1 . . . . . . . 6 2 Projectile 800 | . 9 66 100 . 1 28 . 14 3 9 37 13 11 16 6 . 2 60 4 9 8 . 23 6 34 155 186 AOE 33 | . . . . . . 4 . . . . . . . . . . . . . . . . . . . 28 1 Critical Strikes 52 | . . 1 7 . . 2 . . . 1 1 1 3 . . . 4 4 . 2 . . 5 . 3 9 9 Actively Blocked 1 | . . . . . . . . . . . . . . . . . . . . . . . . . . . 1 Part Disruptions 3 | . . . . . . . . . . . . . 1 . . . . . . . . . . . . 2 . Damage Taken 17263 | . 85 884 1115 . 25 785 . 397 51 202 561 319 518 324 203 . 239 1270 113 262 273 75 635 255 647 3513 4512 Core 2795 | . 7 215 118 . . 292 . 59 . 14 48 19 83 103 24 . 113 234 33 . 17 . 93 57 31 244 991 Absorbed by Shields 475 | . . 32 . . . . . . . . . . . 77 13 . . . . . . . . 17 168 168 . Redirected to Shielding 13 | . . . 13 . . . . . . . . . . . . . . . . . . . . . . . . Ignored by Resistances 308 | . . . . . . . . . . . . . . . . . . . . . . . . . . 308 . Regen/Repaired (Parts) 1358 | . . . . . . 12 12 10 . . . 32 10 12 46 . . 69 . 52 43 . 56 . 348 460 196 Core Remaining (%) 67 | 100 97 . . . 16 . . . . . . 49 . . . . . 44 . . . . 87 . 93 83 38 Volleys Fired 334 | . 11 31 81 . 7 4 14 28 . . 11 . . . . 20 . 34 8 3 7 . . . 3 47 25 Largest 4 | . 2 4 4 . 1 1 2 4 . . 1 . . . . 1 . 3 1 1 1 . . . 1 2 3 Hottest 332 | . 40 126 93 . 75 5 96 112 . . 49 . . . . 30 . 208 44 44 44 . . . 30 251 332 Shots Fired 644 | . 22 101 254 . 7 4 23 54 . . 13 . . . . 20 . 41 8 3 7 . . . 4 52 31 Gun 364 | . 22 70 246 . . . . 9 . . . . . . . . . . . . . . . . . . 17 Cannon 240 | . . 31 8 . 7 . 18 42 . . 7 . . . . 20 . 41 8 3 7 . . . . 35 13 Launcher 26 | . . . . . . . . 3 . . 2 . . . . . . . . . . . . . 3 17 1 Special 14 | . . . . . . 4 5 . . . 4 . . . . . . . . . . . . . 1 . . Kinetic 425 | . 22 84 238 . . . 18 13 . . . . . . . . . 17 8 3 7 . . . . 10 5 Thermal 175 | . . 17 16 . 7 . . 38 . . 7 . . . . 20 . 24 . . . . . . . 25 21 Explosive 22 | . . . . . . . . 3 . . 2 . . . . . . . . . . . . . 3 13 1 Electromagnetic 8 | . . . . . . . . . . . . . . . . . . . . . . . . . . 4 4 Piercing 9 | . . . . . . 1 4 . . . 4 . . . . . . . . . . . . . . . . Robot Hit Streak 14 | . 6 7 9 . . 9 14 7 . . 4 . . . . 5 . 11 3 3 4 . . . 5 9 4 Robot Miss Streak 10 | . 2 3 5 . . . 4 5 . . 3 . . . . 3 . 4 2 . 1 . . . . 10 5 Penetration Max 1 | . . . . . . . 1 . . . . . . . . . . . . . . . . . . 1 . Secondary Targets 7 | . 1 . 5 . . . . 1 . . . . . . . . . . . . . . . . . . . Max Gunslinging Chain 1 | . 1 . 1 . . . . 1 . . . . . . . . . . . . . . . . . . . Shots Hit Robots 442 | . 15 59 132 . . 32 12 28 13 5 9 . 5 5 10 17 1 26 4 3 5 . . 4 6 37 14 Core Hits 206 | . 4 26 57 . . 4 7 9 4 . 4 . 1 . 2 8 . 9 1 1 . . . . 9 50 10 Critical Kills 7 | . . . . . . . 3 1 2 . . . . . 1 . . . . . . . . . . . . Critical Parts Destroyed 27 | . . . 2 . . 6 4 3 2 1 2 . 1 1 1 1 . . . . . . . 1 . 2 . Critical Strikes 50 | . . 2 3 . . 7 11 4 4 1 6 . 1 1 2 1 . 1 . . . . . 1 . 3 2 Burn 2 | . . 1 1 . . . . . . . . . . . . . . . . . . . . . . . . Destroy 11 | . . . 2 . . . 7 2 . . . . . . . . . . . . . . . . . . . Blast 4 | . . 1 . . . . . . . . . . . . . . . 1 . . . . . . . . 2 Smash 24 | . . . . . . 6 . 2 4 1 2 . 1 1 2 1 . . . . . . . 1 . 3 . Impale 9 | . . . . . . 1 4 . . . 4 . . . . . . . . . . . . . . . . Melee Attacks 166 | . . . . . 3 58 1 2 15 8 6 . 9 8 10 6 3 2 . . . . . 7 7 21 . Impact 158 | . . . . . 3 51 . 2 15 8 6 . 9 8 10 6 3 2 . . . . . 7 7 21 . Slashing 7 | . . . . . . 7 . . . . . . . . . . . . . . . . . . . . . Piercing 1 | . . . . . . . 1 . . . . . . . . . . . . . . . . . . . . Sneak Attacks 48 | . . . . . . 8 . 2 8 1 . . 5 2 10 6 1 . . . . . . 2 1 2 . Combat Hostiles 2 | . . . . . . 2 . . . . . . . . . . . . . . . . . . . . . Follow-up Attacks 10 | . . . . . . 9 . . 1 . . . . . . . . . . . . . . . . . . Damage Inflicted 23857 | . 165 798 1838 . . 1091 404 1351 840 291 275 . 499 288 324 1045 89 962 131 87 152 . . 192 1372 10422 1241 Guns 2888 | . 165 570 1781 . . . . 105 . . . . . . . . . . . . . . . . . . 267 Cannons 6143 | . . 218 57 . . . 377 624 . . 33 . . . . 408 . 935 131 87 152 . . . . 2616 505 Explosions 9319 | . . . . . . . . 516 . . 40 . . . . . . . . . . . . . 1154 7179 430 Melee 5322 | . . . . . . 1075 . 106 840 291 136 . 499 288 324 637 89 . . . . . . 192 218 627 . Ramming 76 | . . 10 . . . . . . . . . . . . . . . 27 . . . . . . . . 39 Kinetic 4216 | . 165 585 1720 . . . 377 145 . . . . . . . . . 524 131 87 152 . . . . 212 118 Thermal 7294 | . . 203 118 . . . . 584 . . 33 . . . . 408 . 411 . . . . . . . 4560 977 Explosive 6265 | . . . . . . . . 516 . . 40 . . . . . . . . . . . . . 1154 4555 . Electromagnetic 575 | . . . . . . . . . . . . . . . . . . . . . . . . . . 468 107 Impact 5064 | . . . . . . 817 . 106 840 291 136 . 499 288 324 637 89 . . . . . . 192 218 627 . Slashing 258 | . . . . . . 258 . . . . . . . . . . . . . . . . . . . . . Piercing 109 | . . . . . . 16 27 . . . 66 . . . . . . . . . . . . . . . . Highest Corruption 20 | . . . 3 7 7 3 3 3 3 6 19 19 2 3 8 8 9 9 . . . 1 1 . 6 20 8 Average Corruption 5 | . . . 2 5 7 2 3 3 3 5 8 19 1 2 5 8 8 9 . . . 1 1 . 3 10 5 Corruption Purged . | . . . . . . . . . . . . . . . . . . . . . . . . . . . . Corruption Blocked . | . . . . . . . . . . . . . . . . . . . . . . . . . . . . Effects 375 | . . . 17 2 1 19 11 20 13 40 47 36 4 16 16 19 12 49 . . . 1 5 . 10 26 11 Message Errors 79 | . . . 5 . 1 5 1 5 4 7 9 9 3 . 1 5 4 7 . . . . 2 . 3 5 3 Matter Fused 112 | . . . 5 1 . 4 1 7 4 10 14 7 . 9 6 3 3 20 . . . 1 3 . 2 10 2 Heat Flow Errors 41 | . . . 2 . . 5 1 1 2 4 6 2 1 1 2 . 2 8 . . . . . . 2 1 1 Energy Discharges 49 | . . . 3 . . 3 2 1 1 8 5 7 . 2 2 5 2 2 . . . . . . 1 3 2 Parts Rejected 6 | . . . . . . . 1 2 . . 1 . . . . . . 2 . . . . . . . . . Parts Fused 9 | . . . . . . 1 2 . . . . 2 . . 1 . . 1 . . . . . . . 2 . Data Loss (minor) 48 | . . . 2 1 . . 1 1 2 8 8 6 . 4 3 5 1 4 . . . . . . 1 . 1 Data Loss (major) 15 | . . . . . . 1 2 . . 1 1 2 . . 1 1 . 4 . . . . . . . 1 1 Misfires 9 | . . . . . . . . 3 . . 2 . . . . . . 1 . . . . . . 1 2 . Alerts 5 | . . . . . . . . . . 2 1 . . . . . . . . . . . . . . 1 1 Misdirections 2 | . . . . . . . . . . . . 1 . . . . . . . . . . . . . 1 . Overload Shots 1 | . . . . . . . . 1 . . . . . . . . . . . . . . . . . . . Overflow Damage 3961 | . . . . . . 399 . 237 415 58 94 . 311 106 42 383 64 4 1 37 5 . . 104 259 1393 49 Projectiles 444 | . . . . . . . . 29 . . . . . . . . . 4 1 37 5 . . . . 319 49 Explosions 1150 | . . . . . . . . 102 . . . . . . . . . . . . . . . . 151 897 . Melee 2367 | . . . . . . 399 . 106 415 58 94 . 311 106 42 383 64 . . . . . . 104 108 177 . Knockbacks 40 | . . 3 . . . 4 8 1 3 . 2 . 3 . 1 3 . . 3 . 1 . . . . 8 . Impact 22 | . . . . . . 4 . 1 3 . 2 . 3 . 1 3 . . . . . . . . . 5 . Kinetic 9 | . . 3 . . . . 3 . . . . . . . . . . . . . . . . . . 3 . Secondary 9 | . . . . . . . 5 . . . . . . . . . . . 3 . 1 . . . . . . Self-Inflicted Damage 540 | . . 83 . . . . . . . . . . . . . . . . . . . . . . 93 346 18 Shots 11 | . . 1 . . . . . . . . . . . . . . . . . . . . . . 1 9 . Rammed 15 | . . 1 . . . . . . . . . . . . . . . 4 . . . . . . . . 10 Targets Rammed 15 | . . 1 . . . . . . . . . . . . . . . 4 . . . . . . . . 10 Kicked . | . . . . . . . . . . . . . . . . . . . . . . . . . . . . Crushed . | . . . . . . . . . . . . . . . . . . . . . . . . . . . . Highest Temperature 470 | . 6 311 294 . 232 255 119 145 263 173 192 104 154 251 259 . 147 261 . 15 9 . 26 . 231 470 396 Average Temperature 109 | . 6 107 72 . 105 101 26 39 110 73 90 44 72 109 112 . 72 114 . 10 9 . 17 . 85 149 178 Received Heat Transfer 2972 | . 30 432 321 . 12 102 . 72 18 18 18 105 57 26 36 . 18 546 18 140 39 . 195 22 68 334 345 Effects 12 | . . . 1 . . . . . . . . . . . . . . 1 . . . . . . . 6 4 Shutdowns 2 | . . . . . . . . . . . . . . . . . . . . . . . . . . 1 1 Energy Bleed 5 | . . . 1 . . . . . . . . . . . . . . 1 . . . . . . . 2 1 Interference 2 | . . . . . . . . . . . . . . . . . . . . . . . . . . 2 . Matter Decay 2 | . . . . . . . . . . . . . . . . . . . . . . . . . . . 2 Short Circuit 1 | . . . . . . . . . . . . . . . . . . . . . . . . . . 1 . Siege Activations . | . . . . . . . . . . . . . . . . . . . . . . . . . . . . Martial Activations . | . . . . . . . . . . . . . . . . . . . . . . . . . . . . Shielding Activations . | . . . . . . . . . . . . . . . . . . . . . . . . . . . . Robots Disrupted 1 | . . . . . . . . . . . . . . . . . . . . . . . . . . . 1 Combat Hostiles 1 | . . . . . . . . . . . . . . . . . . . . . . . . . . . 1 Robots Corrupted 26 | . . . . . . 5 . 1 2 1 2 . 4 1 . 4 . . 1 . . . . 1 1 3 . Combat Hostiles 5 | . . . . . . . . . . . . . . 1 . . . . 1 . . . . . 1 2 . Parts Fried 49 | . . . . . . 6 . 1 1 . 1 . 11 1 . 10 1 . . . . . . 6 7 4 . Impact Corruptions 79 | . . . . . . 15 . 3 15 2 2 . 11 4 2 11 2 . 1 . . . . 3 4 4 . Robots Melted 1 | . . . . . . . . . . . . . . . . . . . . . . . . . . 1 . Combat Hostiles 1 | . . . . . . . . . . . . . . . . . . . . . . . . . . 1 . Parts Melted 3 | . . . 3 . . . . . . . . . . . . . . . . . . . . . . . . Heat Transferred 6767 | . . 518 333 . . . . 790 . . 37 . . . . 555 . 518 . . . . . . . 3220 796 Parts Sabotaged 3 | . . . . . . . . . . . . . . . . . . . . . . . . . . 3 . Parts Stolen . | . . . . . . . . . . . . . . . . . . . . . . . . . . . . Parts Stripped . | . . . . . . . . . . . . . . . . . . . . . . . . . . . . Power Chain Reactions . | . . . . . . . . . . . . . . . . . . . . . . . . . . . . Alert | -11 -10 -9 -9 -9 -9 -6 -6 -6 -6 -6 -6 -5 -5 -5 -5 -5 -5 -5 -4 -4 -4 -4 -3 -3 -3 -2 -1 ------- Run | Yrd Mat Mat Sto Rec Scr Fac Was Fac Low Low Zio Pro Fac Ext Cet Arc Hub Gar Fac Upp Upp War Pro Res Tes Res Acc Maximum Alert Level 5 | . . . 1 . . 1 . 5 . . . . 2 2 2 1 3 5 5 . . . . 3 3 4 3 Low Security (%) 33 | 100 100 100 84 100 . 53 100 12 . . . . 20 . . 89 21 . . . . . . . . . . Level 1 23 | . . . 15 . . 46 . 5 . . . . 47 33 98 10 52 . . . . . . 80 . 2 . Level 2 14 | . . . . . . . . 8 . . . . 32 66 1 . 16 4 . . . . . 2 33 46 . Level 3 14 | . . . . . . . . 6 . . . . . . . . 9 22 15 . . . . 16 66 30 100 Level 4 7 | . . . . . . . . 33 . . . . . . . . . 31 39 . . . . . . 20 . Level 5 5 | . . . . . . . . 25 . . . . . . . . . 41 7 . . . . . . . . High Security 1 | . . . . . . . . 8 . . . . . . . . . . 38 . . . . . . . . Max Security . | . . . . . . . . . . . . . . . . . . . . . . . . . . . . Peak Influence 2747 | . 40 103 249 78 . 354 110 2747 . . . . 548 514 400 235 910 2040 1826 . . . . 937 1024 1372 1052 Initial 1071 | . . . 27 78 . . 110 . . . . . 150 257 264 105 24 630 1071 . . . . 357 503 520 815 Average 514 | . 6 27 76 31 . 147 18 1274 . . . . 359 412 314 157 339 1429 1496 . . . . 440 790 786 888 Influence Increases 17741 | . 40 314 705 . . 924 4 3275 140 597 . 123 1156 693 296 272 1066 1550 875 360 220 . 860 1042 1051 1495 683 Destroy 0b10 Robot/C 7320 | . 40 200 440 . . 420 . 1240 60 300 . 80 440 280 140 80 440 620 320 180 100 . 380 400 400 640 120 Destroy 0b10 Robot/NC 445 | . . 10 60 . . 55 . 45 . 5 . 10 35 15 5 40 10 5 5 . . . . 20 45 80 . Destroy Leader 1272 | . . 52 146 . . 110 . 260 10 10 . 10 92 42 . . 72 40 72 . 10 . 50 84 74 118 20 Allied During Kill 5849 | . . . . . . 75 . 1436 70 282 . 23 218 333 145 120 522 665 397 180 110 . 430 498 339 6 . Successful Hack 78 | . . . 7 . . 4 . 14 . . . . 6 8 6 . . . 7 . . . . 5 . . 21 Disable Machine 630 | . . 45 30 . . 90 . 105 . . . . 135 . . 30 . . . . . . . . 135 60 . Anti-Garrison Action 200 | . . . . . . . . . . . . . . . . . . 200 . . . . . . . . . Destroy Structure 1032 | . . 7 7 . . 35 4 145 . . . . 80 . . 2 22 20 44 . . . . 20 28 591 27 Advance Influence 150 | . . . . . . . . . . . . . 150 . . . . . . . . . . . . . . Partial Spotted 90 | . . . . . . 45 . 15 . . . . . 15 . . . . . . . . . . . . 15 Lose Combat Pursuer 675 | . . . 15 . . 90 . 15 . . . . . . . . . . 30 . . . . 15 30 . 480 Influence Decreases 16689 | . 40 247 570 202 . 609 319 528 1308 992 1184 123 630 747 504 465 237 410 1089 1006 547 853 330 677 1020 1062 990 Entered New Map 8063 | . . . 40 124 . . 205 . 1018 301 1184 . . 269 208 159 47 270 969 676 225 853 . 173 392 406 544 Time Decay 6954 | . 40 217 500 78 . 399 114 398 270 571 . 61 550 428 246 286 190 . 80 310 302 . 310 404 428 486 286 Lost Part 532 | . . 30 30 . . 50 . 10 . 20 . 22 20 10 50 . . 40 . . . . . . . 90 160 Lost Ally 1140 | . . . . . . 160 . 120 20 100 . 40 60 40 . 20 . 100 40 20 20 . 20 100 200 80 . Squads Dispatched 82 | . . 2 1 . . 9 . 18 . 1 . . 6 4 . . 6 . 9 . . . . 3 8 8 7 Investigation 17 | . . 1 1 . . 2 . 1 . . . . 2 2 . . 2 . 1 . . . . 1 . 1 3 Extermination 16 | . . . . . . 3 . 2 . . . . 2 . . . 1 . . . . . . . 3 3 2 Reinforcement 24 | . . 1 . . . 4 . 8 . . . . . 2 . . 1 . 1 . . . . 2 4 1 . Assault 14 | . . . . . . . . 1 . 1 . . 2 . . . 1 . 4 . . . . . . 3 2 Garrison 11 | . . . . . . . . 6 . . . . . . . . 1 . 3 . . . . . 1 . . Intercept . | . . . . . . . . . . . . . . . . . . . . . . . . . . . . Searches Triggered . | . . . . . . . . . . . . . . . . . . . . . . . . . . . . Construction Impeded 5 | . . . . . . . . 2 . . . . . 1 . . . . 1 . . . . . . 1 . Haulers Reinforced 2 | . . . . . . . . 1 . . . . . . . . . . . . . . . 1 . . . Active Scanning Responses . | . . . . . . . . . . . . . . . . . . . . . . . . . . . . Cargo Convoy Interrupts . | . . . . . . . . . . . . . . . . . . . . . . . . . . . . Stealth | -11 -10 -9 -9 -9 -9 -6 -6 -6 -6 -6 -6 -5 -5 -5 -5 -5 -5 -5 -4 -4 -4 -4 -3 -3 -3 -2 -1 --------- Run | Yrd Mat Mat Sto Rec Scr Fac Was Fac Low Low Zio Pro Fac Ext Cet Arc Hub Gar Fac Upp Upp War Pro Res Tes Res Acc Distress Signals 19 | . 1 1 1 . . . . 6 . . . . . . 2 . . 1 . . . . . 5 . 1 1 Communications Jammed 49 | . . . . . . . . . . . . . . . . . 6 . . . . . . 1 34 8 . Distress Signals 44 | . . . . . . . . . . . . . . . . . 1 . . . . . . 1 34 8 . Times Spotted 447 | . 10 17 26 . 2 28 6 41 3 14 15 8 19 12 10 15 11 32 12 9 6 . 19 20 25 40 47 Peak Tracking Total 17 | . 7 3 8 . 4 4 2 6 3 5 5 3 4 3 5 2 3 5 5 9 4 . 5 11 6 7 17 Tactical Retreats 19 | . . . 1 . . 3 . 1 . . . . . . . . . . 1 . . . . 1 1 . 11 Traps | -11 -10 -9 -9 -9 -9 -6 -6 -6 -6 -6 -6 -5 -5 -5 -5 -5 -5 -5 -4 -4 -4 -4 -3 -3 -3 -2 -1 ------- Run | Yrd Mat Mat Sto Rec Scr Fac Was Fac Low Low Zio Pro Fac Ext Cet Arc Hub Gar Fac Upp Upp War Pro Res Tes Res Acc Traps Triggered 14 | . . 1 2 . . 1 . 1 . . . . 3 1 . . 1 3 . . . . . . . . 1 Indirectly . | . . . . . . . . . . . . . . . . . . . . . . . . . . . . Trap Hack Attempts . | . . . . . . . . . . . . . . . . . . . . . . . . . . . . Triggered . | . . . . . . . . . . . . . . . . . . . . . . . . . . . . Disarmed . | . . . . . . . . . . . . . . . . . . . . . . . . . . . . Reprogrammed . | . . . . . . . . . . . . . . . . . . . . . . . . . . . . Reused . | . . . . . . . . . . . . . . . . . . . . . . . . . . . . Traps Extracted . | . . . . . . . . . . . . . . . . . . . . . . . . . . . . Installed . | . . . . . . . . . . . . . . . . . . . . . . . . . . . . Triggered . | . . . . . . . . . . . . . . . . . . . . . . . . . . . . Machines | -11 -10 -9 -9 -9 -9 -6 -6 -6 -6 -6 -6 -5 -5 -5 -5 -5 -5 -5 -4 -4 -4 -4 -3 -3 -3 -2 -1 ---------- Run | Yrd Mat Mat Sto Rec Scr Fac Was Fac Low Low Zio Pro Fac Ext Cet Arc Hub Gar Fac Upp Upp War Pro Res Tes Res Acc Machines Disabled 48 | . . 3 2 . 3 6 . 7 . . 1 . 9 . . 2 . 2 . . . . . . 9 4 . Max in Single Turn 2 | . . 2 1 . 1 1 . 1 . . 1 . . . . 1 . 1 . . . . . . 2 1 . Garrison Access 4 | . . . 1 . . 1 . . . . . . 1 . . . . . . . . . . . . 1 . Garrison Relay 2 | . . . . . . . . . . . . . . . . . . 2 . . . . . . . . . Energy Cycler 1 | . . . . . . . . . . . . . . . . . . . . . . . . . . . 1 Machines Repaired . | . . . . . . . . . . . . . . . . . . . . . . . . . . . . Machines Dismantled . | . . . . . . . . . . . . . . . . . . . . . . . . . . . . Machines Sabotaged . | . . . . . . . . . . . . . . . . . . . . . . . . . . . . Overloaded Fab Kills . | . . . . . . . . . . . . . . . . . . . . . . . . . . . . Hacking | -11 -10 -9 -9 -9 -9 -6 -6 -6 -6 -6 -6 -5 -5 -5 -5 -5 -5 -5 -4 -4 -4 -4 -3 -3 -3 -2 -1 --------- Run | Yrd Mat Mat Sto Rec Scr Fac Was Fac Low Low Zio Pro Fac Ext Cet Arc Hub Gar Fac Upp Upp War Pro Res Tes Res Acc Machines Accessed 42 | . . . 7 . 1 5 . 4 . . . . 6 4 1 . 3 2 1 . . . . 4 . 2 2 Terminals 27 | . . . 5 . . 2 . 3 . . . . 3 4 1 . 2 2 1 . . . . 1 . 1 2 Fabricators 5 | . . . . . . 1 . . . . . . 2 . . . . . . . . . . 2 . . . Repair Stations 1 | . . . . . . 1 . . . . . . . . . . . . . . . . . . . . . Recycling Units 1 | . . . 1 . . . . . . . . . . . . . . . . . . . . . . . . Scanalyzers 1 | . . . . . . . . . . . . . . . . . . . . . . . . 1 . . . Garrison Access 6 | . . . 1 . . 1 . 1 . . . . 1 . . . 1 . . . . . . . . 1 . Total Hacks 81 | . . . 13 . 4 12 . 8 . . . . 11 7 1 . 4 5 2 . . . . 7 . 3 4 Successful 38 | . . . 5 . 4 7 . 1 . . . . 6 4 1 . 3 . 1 . . . . 5 . . 1 Failed 43 | . . . 8 . . 5 . 7 . . . . 5 3 . . 1 5 1 . . . . 2 . 3 3 Catastrophic 9 | . . . . . . 2 . 2 . . . . . . . . . 2 1 . . . . . . 2 . Database Lockouts . | . . . . . . . . . . . . . . . . . . . . . . . . . . . . Manual 20 | . . . 2 . . 5 . . . . . . 5 2 1 . 3 . 2 . . . . . . . . Terminals 47 | . . . 10 . . 4 . 6 . . . . 3 7 1 . 3 5 2 . . . . 1 . 1 4 Fabricators 16 | . . . . . . 5 . . . . . . 6 . . . . . . . . . . 5 . . . Repair Stations 2 | . . . . . . 2 . . . . . . . . . . . . . . . . . . . . . Recycling Units 2 | . . . 2 . . . . . . . . . . . . . . . . . . . . . . . . Scanalyzers 1 | . . . . . . . . . . . . . . . . . . . . . . . . 1 . . . Garrison Access 9 | . . . 1 . . 1 . 2 . . . . 2 . . . 1 . . . . . . . . 2 . Terminal Hacks 17 | . . . 3 . 4 . . 1 . . . . 1 4 1 . . . 1 . . . . 1 . . 1 Record 4 | . . . . . 4 . . . . . . . . . . . . . . . . . . . . . . Open Door 7 | . . . 3 . . . . . . . . . . 3 1 . . . . . . . . . . . . Branch Access Points 3 | . . . . . . . . 1 . . . . . . . . . . 1 . . . . 1 . . . Fabricator Index 1 | . . . . . . . . . . . . . 1 . . . . . . . . . . . . . . Recall Reinforcements 1 | . . . . . . . . . . . . . . 1 . . . . . . . . . . . . . Zone Layout 1 | . . . . . . . . . . . . . . . . . . . . . . . . . . . 1 Fabricator Hacks 9 | . . . . . . 4 . . . . . . 2 . . . . . . . . . . 3 . . . Load Schematic 5 | . . . . . . 2 . . . . . . 1 . . . . . . . . . . 2 . . . Build 4 | . . . . . . 2 . . . . . . 1 . . . . . . . . . . 1 . . . Repair Station Hacks 1 | . . . . . . 1 . . . . . . . . . . . . . . . . . . . . . Scan Component 1 | . . . . . . 1 . . . . . . . . . . . . . . . . . . . . . Recycling Unit Hacks 1 | . . . 1 . . . . . . . . . . . . . . . . . . . . . . . . Retrieve Components 1 | . . . 1 . . . . . . . . . . . . . . . . . . . . . . . . Scanalyzer 1 | . . . . . . . . . . . . . . . . . . . . . . . . 1 . . . Retrieve Study 1 | . . . . . . . . . . . . . . . . . . . . . . . . 1 . . . Garrison Access Hacks 4 | . . . 1 . . 1 . . . . . . 1 . . . 1 . . . . . . . . . . Unlock Access 1 | . . . . . . . . . . . . . . . . . 1 . . . . . . . . . . Seal Access 3 | . . . 1 . . 1 . . . . . . 1 . . . . . . . . . . . . . . Unauthorized Hacks 5 | . . . . . . 1 . . . . . . 2 . . . 2 . . . . . . . . . . Terminals 2 | . . . . . . . . . . . . . . . . . 2 . . . . . . . . . . Sabotage 2 | . . . . . . . . . . . . . . . . . 2 . . . . . . . . . . Fabricators 3 | . . . . . . 1 . . . . . . 2 . . . . . . . . . . . . . . Liberate 2 | . . . . . . 1 . . . . . . 1 . . . . . . . . . . . . . . Recompile 1 | . . . . . . . . . . . . . 1 . . . . . . . . . . . . . . Repair Stations . | . . . . . . . . . . . . . . . . . . . . . . . . . . . . Recycling Units . | . . . . . . . . . . . . . . . . . . . . . . . . . . . . Scanalyzers . | . . . . . . . . . . . . . . . . . . . . . . . . . . . . Garrison Access . | . . . . . . . . . . . . . . . . . . . . . . . . . . . . Data Cores Recovered 2 | . . . . . . . . 2 . . . . . . . . . . . . . . . . . . . Used 1 | . . . . . . . . 1 . . . . . . . . . . . . . . . . . . . Hacking Detections 31 | . . . 4 . . 4 . 4 . . . . 5 3 1 . 1 2 1 . . . . 2 . 2 2 Full Trace Events 11 | . . . 1 . . 2 . . . . . . 1 1 . . . 1 1 . . . . 1 . 1 2 Feedback Events 1 | . . . . . . 1 . . . . . . . . . . . . . . . . . . . . . Hackware Fried 1 | . . . . . . 1 . . . . . . . . . . . . . . . . . . . . . Feedback Blocked . | . . . . . . . . . . . . . . . . . . . . . . . . . . . . Robot Schematics Acquired 5 | . . . . . . . . . . . . . . . . . . . . . . . . . 5 . . Robots Built . | . . . . . . . . . . . . . . . . . . . . . . . . . . . . Authchips . | . . . . . . . . . . . . . . . . . . . . . . . . . . . . Time . | . . . . . . . . . . . . . . . . . . . . . . . . . . . . Total Robot Build Rating . | . . . . . . . . . . . . . . . . . . . . . . . . . . . . Part Schematics Acquired 19 | . . . . . 1 8 3 3 . . . . . . . . . . . . . . . . 4 . . Parts Built 3 | . . . . . . 2 . . . . . . 1 . . . . . . . . . . . . . . Authchips 2 | . . . . . . 1 . . . . . . . . . . . . . . . . . 1 . . . Time 506 | . . . . . . 304 . . . . . . 152 . . . . . . . . . . 50 . . . Total Part Build Rating 15 | . . . . . . 10 . . . . . . 5 . . . . . . . . . . . . . . Part Studies Acquired 1 | . . . . . . . . . . . . . . . . . . . . . . . . 1 . . . Parts Repaired . | . . . . . . . . . . . . . . . . . . . . . . . . . . . . Time . | . . . . . . . . . . . . . . . . . . . . . . . . . . . . Parts Recycled . | . . . . . . . . . . . . . . . . . . . . . . . . . . . . Recycled Matter . | . . . . . . . . . . . . . . . . . . . . . . . . . . . . Retrieved Matter . | . . . . . . . . . . . . . . . . . . . . . . . . . . . . Retrieved Components 10 | . . . 10 . . . . . . . . . . . . . . . . . . . . . . . . Parts Scanalyzed . | . . . . . . . . . . . . . . . . . . . . . . . . . . . . Part Schematics Acquired . | . . . . . . . . . . . . . . . . . . . . . . . . . . . . Parts Damaged . | . . . . . . . . . . . . . . . . . . . . . . . . . . . . Bothacking | -11 -10 -9 -9 -9 -9 -6 -6 -6 -6 -6 -6 -5 -5 -5 -5 -5 -5 -5 -4 -4 -4 -4 -3 -3 -3 -2 -1 ------------ Run | Yrd Mat Mat Sto Rec Scr Fac Was Fac Low Low Zio Pro Fac Ext Cet Arc Hub Gar Fac Upp Upp War Pro Res Tes Res Acc Used RIF Installer . | . . . . . . . . . . . . . . . . . . . . . . . . . . . . Robots Hacked 2 | . . . . . . 1 . . . . . . . . . . . . . . . . . . 1 . . Non-combat 1 | . . . . . . 1 . . . . . . . . . . . . . . . . . . . . . Combat . | . . . . . . . . . . . . . . . . . . . . . . . . . . . . Robot Hacks Applied 1 | . . . . . . 1 . . . . . . . . . . . . . . . . . . . . . find_chute 1 | . . . . . . 1 . . . . . . . . . . . . . . . . . . . . . Manual 1 | . . . . . . . . . . . . . . . . . . . . . . . . . 1 . . Relay Couplers Released 14 | . . . . . . . . . . . . . . . . . . 12 . . . . . . . 2 . Machine Destruction 10 | . . . . . . . . . . . . . . . . . . 8 . . . . . . . 2 . Programmers 4 | . . . . . . . . . . . . . . . . . . 4 . . . . . . . . . Fabnet Peak Effective % . | . . . . . . . . . . . . . . . . . . . . . . . . . . . . Robots Rewired 10 | . . . . . . . . . . 1 . . . . . . . 5 2 2 . . . . . . . Allies Hacked 14 | . . . . . . . . 1 . . . . . 2 . . 2 . . . . . . . 9 . . Hacks Repelled . | . . . . . . . . . . . . . . . . . . . . . . . . . . . . Allies | -11 -10 -9 -9 -9 -9 -6 -6 -6 -6 -6 -6 -5 -5 -5 -5 -5 -5 -5 -4 -4 -4 -4 -3 -3 -3 -2 -1 -------- Run | Yrd Mat Mat Sto Rec Scr Fac Was Fac Low Low Zio Pro Fac Ext Cet Arc Hub Gar Fac Upp Upp War Pro Res Tes Res Acc Total Allies 102 | . . . . . . 13 20 9 . 1 . . 18 10 5 . 1 7 4 2 . . . 4 6 2 . Largest Group 22 | . . . . . . 4 22 16 12 8 3 . 12 18 22 18 15 14 13 13 12 9 6 7 6 3 . Highest-Rated Group 831 | . . . . . . 74 728 557 331 257 101 . 198 447 831 705 525 804 631 684 675 583 433 270 133 32 . Highest-Rated Ally 159 | . . . . . . 37 50 50 46 46 46 . 49 159 159 159 96 148 96 96 96 96 96 75 75 12 . Total Orders 93 | . . . . . 33 2 5 4 6 3 15 . 4 1 3 2 . 4 2 4 1 2 . 2 . . . STAY 35 | . . . . . 14 1 2 1 3 . 4 . 2 . 1 1 . 2 . 2 . 1 . 1 . . . ROAM 3 | . . . . . . . . . . . 2 . . . . . . . . . . 1 . . . . . FOLLOW 49 | . . . . . 18 1 3 2 2 1 9 . 2 1 2 1 . 2 2 2 . . . 1 . . . GUARD 1 | . . . . . . . . 1 . . . . . . . . . . . . . . . . . . . AID 1 | . . . . . . . . . . . . . . . . . . . . . 1 . . . . . . DROP 1 | . . . . . . . . . . 1 . . . . . . . . . . . . . . . . . PICKUP 1 | . . . . . . . . . . 1 . . . . . . . . . . . . . . . . . COLLECT 1 | . . . . . . . . . 1 . . . . . . . . . . . . . . . . . . EXPLORE 1 | . . . . . 1 . . . . . . . . . . . . . . . . . . . . . . Ally Attacks 1722 | . . . . . . 87 118 295 25 65 83 26 82 120 43 41 111 150 69 40 18 . 84 128 119 18 . Total Damage 47635 | . . . . . . 2460 2378 7096 532 1603 1860 439 3265 2140 1008 810 3189 5240 3741 1212 589 . 3164 3535 3097 277 . Kills 346 | . . . . . . 21 6 65 3 15 20 6 27 15 8 5 23 32 17 10 5 . 19 22 23 4 . Allies Corrupted 11 | . . . . . . . . 1 1 1 1 . 1 . . . . . . . . . . . 5 1 . Allies Melted 2 | . . . . . . . . . . . . . . . . . . 1 1 . . . . . . . . Borg Created 48 | . . . . . . 9 4 3 3 3 . 3 6 1 2 1 . 2 1 2 . . 2 2 3 1 . Largest Collective 7 | . . . . . . 4 5 4 5 7 . 4 5 6 6 6 . 7 7 7 . . 6 7 6 1 . Intel | -11 -10 -9 -9 -9 -9 -6 -6 -6 -6 -6 -6 -5 -5 -5 -5 -5 -5 -5 -4 -4 -4 -4 -3 -3 -3 -2 -1 ------- Run | Yrd Mat Mat Sto Rec Scr Fac Was Fac Low Low Zio Pro Fac Ext Cet Arc Hub Gar Fac Upp Upp War Pro Res Tes Res Acc Active Infowar (turns) 18460 | . . . . . . 1281 692 1031 591 1722 1695 765 1582 1052 535 622 399 1378 284 690 668 183 694 964 1050 368 214 Optics 16856 | . . . . . . 1281 692 1031 591 1722 1695 765 1582 1052 535 622 399 1378 284 690 668 183 694 964 28 . . Jamming 8261 | . . . . . . . . . 171 360 36 765 1377 220 265 622 399 244 . . 333 183 694 960 1050 368 214 Robot Analysis Total . | . . . . . . . . . . . . . . . . . . . . . . . . . . . . Derelict Logs Recovered 11 | . . . . . . . . . 2 3 1 2 . . . . . . . 1 2 . . . . . . Drone Launches 19 | . . . . . 17 . . . 2 . . . . . . . . . . . . . . . . . . Drone Recoveries 3 | . . . . . 3 . . . . . . . . . . . . . . . . . . . . . . Exploration | -11 -10 -9 -9 -9 -9 -6 -6 -6 -6 -6 -6 -5 -5 -5 -5 -5 -5 -5 -4 -4 -4 -4 -3 -3 -3 -2 -1 ------------- Run | Yrd Mat Mat Sto Rec Scr Fac Was Fac Low Low Zio Pro Fac Ext Cet Arc Hub Gar Fac Upp Upp War Pro Res Tes Res Acc Turns Passed 26858 | 72 282 620 2014 218 3648 1511 692 1031 591 1722 1695 765 1582 1052 535 622 399 1378 284 690 668 183 694 964 1050 1266 630 Spaces Moved 18159 | 41 152 310 727 80 3147 1698 604 1328 508 1291 494 455 1031 493 281 293 193 644 119 453 446 116 407 607 608 712 921 Core 445 | 4 . . . . . . . . . . . . . . . . . . . . . . . . . . 441 Treads 1100 | 37 152 310 7 . . . . . . . . . . . 109 263 . 222 . . . . . . . . . Legs 8175 | . . . 720 80 1193 . . . . 837 494 455 977 . 12 . . 181 119 453 446 116 407 575 255 712 143 Wheels 464 | . . . . . . . . . . . . . . . . 30 193 241 . . . . . . . . . Hover 5314 | . . . . . . 1326 604 1328 508 454 . . 54 493 160 . . . . . . . . 32 353 . 2 Flight 2661 | . . . . . 1954 372 . . . . . . . . . . . . . . . . . . . . 335 Fastest Speed 29 | 50 160 160 195 265 34 37 48 48 48 48 115 110 113 44 48 140 140 126 126 126 126 126 125 113 108 114 29 Average Speed 112 | 149 160 160 236 265 103 68 59 54 55 105 118 153 122 164 103 157 140 164 126 126 126 126 125 140 143 137 54 Slowest Speed 480 | 160 160 240 270 265 197 221 110 118 168 190 120 185 185 480 240 160 140 230 126 126 126 126 126 400 355 185 150 Overloaded Moves 19 | . . . . . . . . . . 19 . . . . . . . . . . . . . . . . . Propulsion Burnouts . | . . . . . . . . . . . . . . . . . . . . . . . . . . . . Robots Hopped 20 | . . . . . 3 1 . . . . . . . . 1 . . . . . . . . . . . 15 Potential Cave-ins 2 | . . . . . 2 . . . . . . . . . . . . . . . . . . . . . . Cave-ins Triggered . | . . . . . . . . . . . . . . . . . . . . . . . . . . . . Exploration Rate (%) 49 | 3 31 32 91 16 85 34 95 38 53 93 75 67 17 62 81 88 19 55 5 52 81 15 58 25 52 18 34 Regions Visited 27 Branch Regions 16 Pre-discovered Areas 3 | . . . 1 . . . . . . . . 2 . . . . . . . . . . . . . . . Known Exits Taken 7 | . . . . . . . . 1 . . . 1 1 . . . 1 . 1 . 1 . . 1 . . . Unknown Exits Taken 17 | 1 1 1 1 1 1 . . . 1 1 1 . . 1 1 1 . . . 1 . 1 1 . 1 1 . Scrap Searched 24 | . . . . . 7 . . . 3 4 2 5 . . . . . . . . 2 . 1 . . . . Spaces Dug 26 | . . . . . 2 9 1 1 . . . . 3 . . . 1 1 . . . . . 3 . 3 2 Terrain Destroyed 375 | . . 5 7 . 5 9 13 41 . . 7 . 3 . . 1 1 1 2 . 1 . . 3 15 252 9 Melee 21 | . . . . . . 9 1 . . . . . 3 . . . 1 1 . . . . . 3 . 3 . Projectile 49 | . . . 7 . 5 . 12 8 . . . . . . . 1 . . 2 . 1 . . . . 10 3 AOE 305 | . . 5 . . . . . 33 . . 7 . . . . . . . . . . . . . 15 239 6 Terrain Rammed . | . . . . . . . . . . . . . . . . . . . . . . . . . . . . Walls Destroyed . | . . . . . . . . . . . . . . . . . . . . . . . . . . . . Machines Disabled . | . . . . . . . . . . . . . . . . . . . . . . . . . . . . Actions | -11 -10 -9 -9 -9 -9 -6 -6 -6 -6 -6 -6 -5 -5 -5 -5 -5 -5 -5 -4 -4 -4 -4 -3 -3 -3 -2 -1 --------- Run | Yrd Mat Mat Sto Rec Scr Fac Was Fac Low Low Zio Pro Fac Ext Cet Arc Hub Gar Fac Upp Upp War Pro Res Tes Res Acc Total 23854 | 49 171 368 880 89 3540 1961 915 1594 800 1639 1578 522 1339 720 504 422 312 921 247 570 545 153 594 709 783 923 1006 Wait 4107 | . . 2 6 . 285 120 259 151 235 313 1045 52 216 202 187 89 115 145 105 96 82 38 154 49 89 60 12 Move 18099 | 40 151 310 726 79 3141 1696 603 1327 507 1290 493 454 1030 492 278 292 192 642 118 452 445 115 406 606 607 711 896 Hop 13 | . . . . . 2 1 . . . . . . . . 1 . . . . . . . . . . . 9 Pick Up 206 | 3 5 12 25 3 29 6 4 11 11 2 3 5 5 . 4 3 . 10 1 3 3 . 8 9 12 23 6 Fast Attach 173 | 6 1 3 8 2 15 24 6 17 2 6 6 1 4 3 2 1 . 10 . . . . 4 10 12 13 17 Attach 173 | . . 2 6 . 5 16 6 18 11 5 3 3 20 5 8 5 1 8 6 3 2 . 3 5 12 14 6 Detach 93 | . . . . . 2 11 3 9 7 4 3 . 16 5 6 2 1 1 5 . 1 . 1 2 3 6 5 Swap 39 | . 1 2 7 . . 2 . 2 1 1 1 . 1 . 4 . . 1 . . 2 . 1 6 3 4 . Drop 280 | . 2 6 21 5 45 20 11 24 11 5 7 2 5 2 2 3 . 16 . 2 2 . 12 12 24 21 20 Fire 334 | . 11 31 81 . 7 4 14 28 . . 11 . . . . 20 . 34 8 3 7 . . . 3 47 25 Melee 152 | . . . . . 3 47 1 2 12 8 6 . 9 8 10 6 3 2 . . . . . 7 7 21 . Ram 10 | . . . . . . . . . . . . . . . . . . . . . . . . . . . 10 Kick . | . . . . . . . . . . . . . . . . . . . . . . . . . . . . Crush 4 | . . . . . . . . . . . . . . . . . . 4 . . . . . . . . . Escape Stasis 50 | . . . . . . . . . . . . . 26 . . . . 24 . . . . . . . . . Rewire 62 | . . . . . . 5 3 2 . 2 . 2 1 2 . . . 22 3 9 1 . 1 1 6 2 . Trap . | . . . . . . . . . . . . . . . . . . . . . . . . . . . . Miscellaneous 59 | . . . . . 6 9 5 3 3 3 . 3 6 1 2 1 . 2 1 2 . . 4 2 5 1 . Route ------- -11/Scrapyard -10/Materials -9/Materials (discovered 3 exits: [*Mat] / *Sto x2) -9/Storage (discovered 2 exits: [*Mat] / [*Rec]) -9/Recycling -9/Scraptown -6/Factory -6/Waste -6/Factory (discovered 5 exits: *Fac x3 / *Low x2) -6/Lower Caves -6/Lower Caves -6/Zion -5/Proximity Caves -5/Factory -5/Extension (discovered 2 exits: *Fac / *Cet) -5/Cetus (discovered 2 exits: *Fac / [*Arc]) -5/Archives (discovered 3 exits: *Fac / *Hub x2) -5/Hub_04(d) -5/Garrison (discovered 2 exits: *Fac x2) -4/Factory (discovered 2 exits: *Upp x2) -4/Upper Caves -4/Upper Caves (discovered 2 exits: *Res / *War) -4/Warlord -3/Proximity Caves -3/Research (discovered 4 exits: *Res / Arm / *Tes x2) -3/Testing -2/Research -1/Access To Epsilon Eridani History --------- Turn | Location | Event 5 | -11/Scrapyard | Discovered new exit (range 15) 73 | -11/Scrapyard | Entered Materials 308 | -10/Materials | Build established: Mutant 352 | -10/Materials | Discovered new exit (range 3) 355 | -10/Materials | Entered another Materials area 355 | -9/Materials | Evolved 2 slots: Weapon x2 355 | -9/Materials | Discovered new exit (range 8) 700 | -9/Materials | Discovered new exit (range 13) 719 | -9/Materials | Build established: Tank 929 | -9/Materials | Discovered new exit (range 12) 972 | -9/Materials | Core integrity fell below 50% 975 | -9/Materials | Entered Storage 1151 | -9/Storage | Lost 5 parts (1p1n1u2w) 1156 | -9/Storage | Destroyed 8 combat bots 1891 | -9/Storage | Learned location of Armory (-3) 2436 | -9/Storage | Discovered new exit (range 8) 2497 | -9/Storage | Core integrity fell below 20% 2979 | -9/Storage | Used back door to open Recycling access 2979 | -9/Storage | Discovered new exit (range 5) 2989 | -9/Storage | Entered Recycling 3141 | -9/Recycling | Scanned before Scraplab entrance 3181 | -9/Recycling | Entered Scraplab 3202 | -9/Recycling | Discovered new exit (range 2) 3207 | -9/Recycling | Entered Scraptown 3210 | -9/Scraptown | System corruption cleaned by C-Scrubber 3282 | -9/Scraptown | Heard Great Nut preacher, LISTEN AND RECITE! 3282 | -9/Scraptown | Visited Shadow of the Wyrm 3301 | -9/Scraptown | Visited Red Mages 3328 | -9/Scraptown | Visited Bundlers 3350 | -9/Scraptown | Visited Junk Repository 3391 | -9/Scraptown | Visited IN-MT5's Study 3496 | -9/Scraptown | Build established: Mutant 3529 | -9/Scraptown | Visited UFD Registry 3529 | -9/Scraptown | Registered with UFD as "Longrunner" 3576 | -9/Scraptown | Visited Scrap Suit Storage 3633 | -9/Scraptown | Visited Research Penetration Think Tank 3656 | -9/Scraptown | Visited Infowarlord's Domain 3683 | -9/Scraptown | Visited Analyses Database 3709 | -9/Scraptown | Visited Scrapoid Research Area 3726 | -9/Scraptown | Visited Abandonware Association 3761 | -9/Scraptown | Visited Junk Repository 3830 | -9/Scraptown | Visited Science Guys 4062 | -9/Scraptown | Discovered new exit (range 13) 5434 | -9/Scraptown | Visited CPS Storage 5704 | -9/Scraptown | Learned abandonware demo "REPAIR.EXE" 6297 | -9/Scraptown | Build established: Gunner 6600 | -9/Scraptown | Build established: Mutant 6791 | -9/Scraptown | Attacked by Scraptown defenders 6855 | -9/Scraptown | Entered Factory 6855 | -6/Factory | Accompanied by 2 allies 6855 | -6/Factory | Evolved 6 slots: Propulsion x2, Utility x3, Weapon x1 6874 | -6/Factory | Attached CPS modules to O-24 Administrator. 6883 | -6/Factory | Lost 8 allies 6939 | -6/Factory | Found Prototype Special Melee Weapon 7019 | -6/Factory | Tech Extrapolator generated special schematic: Deep Structural Scanner 7036 | -6/Factory | Attached CPS modules to U-05 Engineer. 7180 | -6/Factory | Build established: Hacker-Mutant 7214 | -6/Factory | Fabricated IN-MT5's Pitchfork "Insurrection"? 7351 | -6/Factory | Tech Extrapolator generated special schematic: Energy Deflector 7387 | -6/Factory | Hacking Suite fried by hacking feedback 7400 | -6/Factory | Reprogrammed and armed K-01 Serf 7424 | -6/Factory | Reprogrammed and armed K-01 Serf 7441 | -6/Factory | Reprogrammed and armed K-01 Serf 7443 | -6/Factory | Reprogrammed and armed K-01 Serf 7454 | -6/Factory | Identified 1B-0RG's Assimilator 7457 | -6/Factory | Assimilating Serf 5a into Collective. 7458 | -6/Factory | Assimilating Serf 5b into Collective. 7462 | -6/Factory | Assimilating Serf 5c into Collective. 7464 | -6/Factory | Assimilating Serf 5d into Collective. 7662 | -6/Factory | Lost 3 parts (1p2n) 7697 | -6/Factory | Build established: Mutant 7712 | -6/Factory | Fabricated IN-MT5's Pitchfork "Insurrection" (x1) 7721 | -6/Factory | Assimilating Slicer 5a into Collective. 7744 | -6/Factory | Assimilating Hacker 5a into Collective. 7857 | -6/Factory | Reprogrammed and armed K-01 Serf 7889 | -6/Factory | Reprogrammed and armed K-01 Serf 7891 | -6/Factory | Assimilating Serf 5e into Collective. 7892 | -6/Factory | Assimilating Serf 5f into Collective. 7931 | -6/Factory | Reprogrammed and armed K-01 Serf 7948 | -6/Factory | Reprogrammed and armed K-01 Serf 7952 | -6/Factory | Assimilating Serf 5g into Collective. 8094 | -6/Factory | Reprogrammed and armed K-01 Serf 8111 | -6/Factory | Reprogrammed and armed K-01 Serf 8234 | -6/Factory | Reprogrammed and armed K-01 Serf 8366 | -6/Factory | Manually triggered Chute Trap 8366 | -6/Factory | Sucked down chute 8366 | -6/Factory | Entered Waste 8366 | -6/Waste | Met up with 1 ally sucked down the chute earlier 8370 | -6/Waste | Spotted C-40 Crusher 8386 | -6/Waste | 2 allies followed down the chute 8426 | -6/Waste | 2 allies followed down the chute 8472 | -6/Waste | Spotted C-40 Crusher 8478 | -6/Waste | Spotted C-40 Crusher 8493 | -6/Waste | Spotted C-40 Crusher 8494 | -6/Waste | Allies destroyed C-40 Crusher 8509 | -6/Waste | Allies destroyed C-40 Crusher 8518 | -6/Waste | Allies destroyed C-40 Crusher 8528 | -6/Waste | Spotted C-40 Crusher 8547 | -6/Waste | Allies destroyed C-40 Crusher 8581 | -6/Waste | Allies destroyed C-40 Crusher 8585 | -6/Waste | Spotted C-40 Crusher 8617 | -6/Waste | Allies destroyed C-40 Crusher 8618 | -6/Waste | Discovered new exit (range 22) 8661 | -6/Waste | Build established: Scavenger-Mutant 8664 | -6/Waste | Warlord forces began an assault 8694 | -6/Waste | Assimilating O1-VYD(m) into Collective. 8697 | -6/Waste | Assimilating Serf 5h into Collective. 8724 | -6/Waste | Assimilating Serf 5i into Collective. 8869 | -6/Waste | Assimilating ZU-TJR(d) into Collective. 8961 | -6/Waste | Build established: Mutant 9058 | -6/Waste | Entered Factory 9058 | -6/Factory | Accompanied by 19 allies 9156 | -6/Factory | Lost 3 allies 9223 | -6/Factory | Reprogrammed and armed K-01 Serf 9239 | -6/Factory | Reprogrammed and armed K-01 Serf 9242 | -6/Factory | Reprogrammed and armed K-01 Serf 9267 | -6/Factory | Garrison activated, responded to threat 9279 | -6/Factory | Assimilating Serf 5j into Collective. 9280 | -6/Factory | Assimilating Serf 5k into Collective. 9377 | -6/Factory | Discovered new exit (range 20) 9433 | -6/Factory | Identified exit to Factory 9472 | -6/Factory | Identified exit to Lower Caves 9637 | -6/Factory | Discovered exit to Factory (range 6) 9758 | -6/Factory | First assault squad dispatched 9771 | -6/Factory | Reprogrammed and armed K-01 Serf 9779 | -6/Factory | Lost 3 allies 9784 | -6/Factory | Reprogrammed and armed K-01 Serf 9800 | -6/Factory | Reprogrammed and armed K-01 Serf 9836 | -6/Factory | Reprogrammed and armed K-01 Serf 9838 | -6/Factory | Reprogrammed and armed K-01 Serf 9850 | -6/Factory | Garrison activated, responded to threat 9911 | -6/Factory | Discovered exit to Factory (range 20) 9927 | -6/Factory | Lost 3 allies 9987 | -6/Factory | Reprogrammed and armed K-01 Serf 10003 | -6/Factory | High security lockdown imminent 10057 | -6/Factory | Assimilating Conveyor 5a into Collective. 10083 | -6/Factory | High security lockdown engaged 10089 | -6/Factory | Entered Lower Caves 10089 | -6/Lower Caves | Accompanied by 15 allies 10171 | -6/Lower Caves | Assimilating Serf 5l into Collective. 10172 | -6/Lower Caves | Assimilating Serf 5m into Collective. 10373 | -6/Lower Caves | Learned 4 Factory zone layouts 10497 | -6/Lower Caves | Assimilating Serf 5n into Collective. 10594 | -6/Lower Caves | Learned location of 1 exit from Proximity Caves 10610 | -6/Lower Caves | Discovered new exit (range 6) 10680 | -6/Lower Caves | Entered another Lower Caves area 10680 | -6/Lower Caves | Accompanied by 13 allies 10795 | -6/Lower Caves | Entered a destroyed Warlord outpost 10859 | -6/Lower Caves | Attracted the attention of an 0b10 checkpoint 11000 | -6/Lower Caves | Learned Factory trap positions 11003 | -6/Lower Caves | Learned Factory emergency access door positions 11035 | -6/Lower Caves | Attracted the attention of an 0b10 outpost 11106 | -6/Lower Caves | Assimilating Angel 5a into Collective. 11140 | -6/Lower Caves | Lost 3 allies 11344 | -6/Lower Caves | Assimilating Serf 5o into Collective. 11551 | -6/Lower Caves | Assimilating Serf 5p into Collective. 11826 | -6/Lower Caves | Discovered new exit (range 14) 11934 | -6/Lower Caves | Encountered a Warlord checkpoint 12402 | -6/Lower Caves | Entered Zion 12402 | -6/Zion | Accompanied by 10 allies 12476 | -6/Zion | Discovered new exit (range 20) 12585 | -6/Zion | Found Prototype Device 13729 | -6/Zion | Attacked by Zionites 13729 | -6/Zion | Spotted 31-IRF(B) 13730 | -6/Zion | Spotted FQ-84O(B) 13742 | -6/Zion | Allies destroyed FQ-84O(B) 13774 | -6/Zion | Lost 4 allies 13786 | -6/Zion | NK-0LA came to Zion's defense 13796 | -6/Zion | Allies destroyed 31-IRF(B) 13811 | -6/Zion | System corruption reached 10% 13820 | -6/Zion | Destroyed NK-0LA 13832 | -6/Zion | Found Prototype Device 13832 | -6/Zion | Identified Adv. EM Shield 14097 | -6/Zion | Entered Proximity Caves 14097 | -5/Proximity Caves | Accompanied by 2 allies 14105 | -5/Proximity Caves | Build established: Scavenger-Mutant 14184 | -5/Proximity Caves | Spotter reported a threat 14326 | -5/Proximity Caves | Attracted the attention of an 0b10 checkpoint 14334 | -5/Proximity Caves | Assimilating Sentinel 6a into Collective. 14338 | -5/Proximity Caves | Assimilating Soldier 6a into Collective. 14358 | -5/Proximity Caves | Lost 3 parts (1p2n) 14467 | -5/Proximity Caves | Learned location of Warlord (-4) 14477 | -5/Proximity Caves | Core integrity fell below 50% 14545 | -5/Proximity Caves | Spotted B-75 Beast 14579 | -5/Proximity Caves | Assimilating Beast 6a into Collective. 14633 | -5/Proximity Caves | Build established: Mutant 14862 | -5/Proximity Caves | Entered Factory 14862 | -5/Factory | Accompanied by 3 allies 14862 | -5/Factory | Evolved 2 slots: Propulsion x1, Utility x1 14863 | -5/Factory | Identified exit to Extension 14865 | -5/Factory | Loaded intel: 80 trap records 14955 | -5/Factory | Reprogrammed and armed K-01 Serf 15172 | -5/Factory | Build established: Hacker-Mutant 15219 | -5/Factory | Lost 3 allies 15230 | -5/Factory | Reprogrammed and armed K-01 Serf 15235 | -5/Factory | Reprogrammed and armed K-01 Serf 15239 | -5/Factory | Assimilating Serf 6a into Collective. 15242 | -5/Factory | Assimilating Serf 6b into Collective. 15285 | -5/Factory | Reprogrammed and armed K-01 Serf 15288 | -5/Factory | Reprogrammed and armed K-01 Serf 15298 | -5/Factory | Reprogrammed and armed K-01 Serf 15305 | -5/Factory | Assimilating Serf 6c into Collective. 15309 | -5/Factory | Assimilating Serf 6d into Collective. 15429 | -5/Factory | Reprogrammed and armed K-01 Serf 15528 | -5/Factory | Assimilating Serf 6e into Collective. 15675 | -5/Factory | Reprogrammed and armed K-01 Serf 15682 | -5/Factory | Reprogrammed and armed K-01 Serf 15817 | -5/Factory | Reprogrammed and armed K-01 Serf 15830 | -5/Factory | Reprogrammed and armed K-01 Serf 16063 | -5/Factory | Fabricated IN-MT5's Pitchfork "Insurrection"? 16066 | -5/Factory | Reprogrammed and armed K-01 Serf 16100 | -5/Factory | Reprogrammed and armed K-01 Serf 16119 | -5/Factory | Reprogrammed and armed K-01 Serf 16216 | -5/Factory | Reprogrammed and armed K-01 Serf 16239 | -5/Factory | Reprogrammed and armed K-01 Serf 16288 | -5/Factory | Assimilating Sage 6a into Collective. 16362 | -5/Factory | First assault squad dispatched 16444 | -5/Factory | Entered Extension 16444 | -5/Extension | Accompanied by 17 allies 16446 | -5/Extension | Assimilating Serf 6f into Collective. 16512 | -5/Extension | Rescued a captive Derelict 16512 | -5/Extension | Rescued a captive Derelict 16551 | -5/Extension | Rescued a captive Derelict 16552 | -5/Extension | Rescued a captive Derelict 16631 | -5/Extension | P-70 Sage assimilated allied K-01 Serf 16658 | -5/Extension | Rescued A7 16903 | -5/Extension | Build established: Scavenger-Mutant 16909 | -5/Extension | Reprogrammed and armed K-01 Serf 16977 | -5/Extension | Reprogrammed and armed K-01 Serf 16983 | -5/Extension | Reprogrammed and armed K-01 Serf 17016 | -5/Extension | Reprogrammed and armed K-01 Serf 17037 | -5/Extension | Reprogrammed and armed K-01 Serf 17088 | -5/Extension | Spotted B-75 Beast 17098 | -5/Extension | Allies destroyed B-75 Beast 17104 | -5/Extension | Spotted B-75 Beast 17119 | -5/Extension | Allies destroyed B-75 Beast 17398 | -5/Extension | Discovered new exit (range 21) 17399 | -5/Extension | Discovered new exit (range 21) 17496 | -5/Extension | Entered Cetus 17496 | -5/Cetus | Accompanied by 24 allies (A7) 17501 | -5/Cetus | Acquired a Cetus Manufacturing Module code from A7 17513 | -5/Cetus | Spotted Cetus Guard 17513 | -5/Cetus | Spotted Cetus Guard 17513 | -5/Cetus | Spotted Cetus Guard 17513 | -5/Cetus | Spotted Cetus Guard 17522 | -5/Cetus | Assimilating Cetus Guard into Collective. 17530 | -5/Cetus | Allies destroyed Cetus Guard 17530 | -5/Cetus | Allies destroyed Cetus Guard 17531 | -5/Cetus | Allies destroyed Cetus Guard 17599 | -5/Cetus | Destroyed Borg Cetus Guard 17646 | -5/Cetus | Escorted A7 to Cetus Mainframe 17654 | -5/Cetus | Discovered new exit (range 21) 17701 | -5/Cetus | Spotted Cetus Guard 17702 | -5/Cetus | Spotted Cetus Guard 17704 | -5/Cetus | Spotted Cetus Guard 17706 | -5/Cetus | Discovered new exit (range 22) 17707 | -5/Cetus | Spotted Cetus Guard 17713 | -5/Cetus | Allies destroyed Cetus Guard 17723 | -5/Cetus | Allies destroyed Cetus Guard 17726 | -5/Cetus | Allies destroyed Cetus Guard 17726 | -5/Cetus | Allies destroyed Cetus Guard 17728 | -5/Cetus | Met Revision 17 17755 | -5/Cetus | Lost 3 parts (3n) 17784 | -5/Cetus | Identified Phasing AFG 17816 | -5/Cetus | Build established: Hacker-Mutant 17878 | -5/Cetus | Started Cetus Manufacturing Module 17903 | -5/Cetus | Manufactured an Enhanced Grunt 17913 | -5/Cetus | Assimilating Enhanced Grunt into Collective. 17928 | -5/Cetus | Manufactured an Enhanced Grunt 17953 | -5/Cetus | Manufactured an Enhanced Grunt 17978 | -5/Cetus | Manufactured an Enhanced Grunt 18003 | -5/Cetus | Manufactured an Enhanced Grunt 18031 | -5/Cetus | Entered Archives 18031 | -5/Archives | Accompanied by 24 allies (A7) 18036 | -5/Archives | Received a hacking code to weaken MAIN.C 18054 | -5/Archives | Discovered new exit (range 21) 18067 | -5/Archives | Assimilating Serf 6g into Collective. 18072 | -5/Archives | Discovered new exit (range 22) 18102 | -5/Archives | Discovered new exit (range 21) 18653 | -5/Archives | Entered Hub_04(d) 18653 | -5/Hub_04(d) | Accompanied by 20 allies 18754 | -5/Hub_04(d) | Identified exit to Garrison 18953 | -5/Hub_04(d) | First assault squad dispatched 18956 | -5/Hub_04(d) | Reprogrammed and armed K-01 Serf 19006 | -5/Hub_04(d) | Garrison activated, responded to threat 19052 | -5/Hub_04(d) | Entered Garrison 19052 | -5/Garrison | Accompanied by 20 allies 19094 | -5/Garrison | Triggered checkpoint 19129 | -5/Garrison | Garrison Relay disabled 19254 | -5/Garrison | Spotted B-75 Beast 19258 | -5/Garrison | Triggered checkpoint 19266 | -5/Garrison | Triggered checkpoint 19289 | -5/Garrison | Allies destroyed B-75 Beast 19301 | -5/Garrison | Lost 4 allies 19325 | -5/Garrison | Assimilating Serf 6h into Collective. 19431 | -5/Garrison | Assimilating Serf 6i into Collective. 19496 | -5/Garrison | Triggered checkpoint 19501 | -5/Garrison | Discovered new exit (range 12) 19504 | -5/Garrison | Found embedded Infiltrators 19578 | -5/Garrison | Triggered checkpoint 19606 | -5/Garrison | Build established: Scavenger-Mutant 19640 | -5/Garrison | Triggered checkpoint 19660 | -5/Garrison | Garrison Relay disabled 20008 | -5/Garrison | Attempted to access garrison exit controls, blocked by remote lockdown 20041 | -5/Garrison | Build established: Commander-Mutant 20071 | -5/Garrison | Core integrity fell below 50% 20244 | -5/Garrison | Discovered new exit (range 12) 20250 | -5/Garrison | Spotted B-86 Titan 20274 | -5/Garrison | Destroyed B-86 Titan 20301 | -5/Garrison | Rewired B-90 Cyclops 20358 | -5/Garrison | Destroyed Cyclops 6a 20430 | -5/Garrison | Entered Factory 20430 | -4/Factory | Accompanied by 17 allies 20430 | -4/Factory | Evolved 2 slots: Propulsion x1, Utility x1 20453 | -4/Factory | Identified exit to Upper Caves 20474 | -4/Factory | Garrison activated, responded to threat 20493 | -4/Factory | Assimilating Machinist 7a into Collective. 20567 | -4/Factory | Reprogrammed and armed K-01 Serf 20584 | -4/Factory | Reprogrammed and armed K-01 Serf 20606 | -4/Factory | High security lockdown imminent 20686 | -4/Factory | High security lockdown engaged 20714 | -4/Factory | Entered Upper Caves 20714 | -4/Upper Caves | Accompanied by 19 allies 20863 | -4/Upper Caves | Assimilating Serf 7a into Collective. 20969 | -4/Upper Caves | Attracted the attention of an 0b10 outpost 20996 | -4/Upper Caves | Learned Research trap positions 21123 | -4/Upper Caves | Assimilating Serf 7b into Collective. 21303 | -4/Upper Caves | Discovered new exit (range 11) 21404 | -4/Upper Caves | Entered another Upper Caves area 21404 | -4/Upper Caves | Accompanied by 19 allies 21416 | -4/Upper Caves | Discovered new exit (range 11) 21538 | -4/Upper Caves | Identified exit to Warlord 22072 | -4/Upper Caves | Entered Warlord 22072 | -4/Warlord | Accompanied by 15 allies 22118 | -4/Warlord | Discovered new exit (range 15) 22138 | -4/Warlord | Lost 4 allies 22205 | -4/Warlord | System corruption cleaned by Quarantine Array 22255 | -4/Warlord | Entered Proximity Caves 22255 | -3/Proximity Caves | Accompanied by 11 allies 22268 | -3/Proximity Caves | Assimilating Enhanced Grunt into Collective. 22686 | -3/Proximity Caves | Attracted the attention of an 0b10 checkpoint 22743 | -3/Proximity Caves | Assimilating Enhanced Grunt into Collective. 22811 | -3/Proximity Caves | Discovered new exit (range 19) 22949 | -3/Proximity Caves | Entered Research 22949 | -3/Research | Accompanied by 10 allies 22949 | -3/Research | Evolved 2 slots: Power x1, Propulsion x1 22950 | -3/Research | Loaded intel: 119 trap records 23146 | -3/Research | Reprogrammed and armed K-01 Serf 23149 | -3/Research | Revision forces began assault on 0b10 23275 | -3/Research | Met up with Revision 17++ 23303 | -3/Research | Reprogrammed and armed K-01 Serf 23321 | -3/Research | Identified exit to Armory 23321 | -3/Research | Identified exit to Testing 23343 | -3/Research | Discovered new exit (range 5) 23491 | -3/Research | Reprogrammed and armed K-01 Serf 23493 | -3/Research | Reprogrammed and armed K-01 Serf 23510 | -3/Research | Found Fusion Bomb Launcher 23518 | -3/Research | Assimilating Serf 8a into Collective. 23596 | -3/Research | Assimilating Serf 8b into Collective. 23649 | -3/Research | Research terminal network offline 23730 | -3/Research | Spotted Striker 23735 | -3/Research | Spotted Striker 23793 | -3/Research | Lost 3 allies 23913 | -3/Research | Entered Testing 23913 | -3/Testing | Accompanied by 8 allies 23930 | -3/Testing | Assimilating Analyst 8a into Collective. 23941 | -3/Testing | Found Prototype Protection 23941 | -3/Testing | Identified Hvy. Regenerative Plating 23978 | -3/Testing | Found Prototype Launcher 23978 | -3/Testing | Identified Z-bomb Delivery System 24032 | -3/Testing | Found Prototype Launcher 24032 | -3/Testing | Identified Tesla Bomb Launcher 24055 | -3/Testing | Build established: Mutant 24226 | -3/Testing | Scanned by Researcher 24353 | -3/Testing | Discovered new exit (range 6) 24439 | -3/Testing | P-80 Master assimilated allied K-01 Serf 24444 | -3/Testing | Assimilating Master 8a into Collective. 24487 | -3/Testing | Lost 7 allies 24518 | -3/Testing | Assimilating Assassin 8a into Collective. 24549 | -3/Testing | Found Prototype Energy Cannon 24820 | -3/Testing | Identified Imp. Potential Cannon 24837 | -3/Testing | Reprogrammed and armed K-01 Serf 24852 | -3/Testing | Reprogrammed and armed K-01 Serf 24856 | -3/Testing | Reprogrammed and armed K-01 Serf 24874 | -3/Testing | Reprogrammed and armed K-01 Serf 24905 | -3/Testing | Reprogrammed and armed K-01 Serf 24915 | -3/Testing | Garrison activated, responded to threat 24963 | -3/Testing | Entered Research 24963 | -2/Research | Accompanied by 3 allies 24963 | -2/Research | Evolved 2 slots: Propulsion x1, Utility x1 24966 | -2/Research | Murdered 3 allies 25113 | -2/Research | Build established: Scavenger-Tank 25143 | -2/Research | Spotted B-90 Cyclops 25242 | -2/Research | Assimilating Warden 9a into Collective. 25499 | -2/Research | Found Corrupted Prototype Launcher 25540 | -2/Research | Reprogrammed and armed K-01 Serf 25855 | -2/Research | Reprogrammed and armed K-01 Serf 25910 | -2/Research | Identified Enh. Gamma Bomb Array 25911 | -2/Research | System corruption reached 10% 26213 | -2/Research | First assault squad dispatched 26220 | -2/Research | Discovered new exit (range 8) 26229 | -2/Research | Entered Access 26229 | -1/Access | Evolved 2 slots: Power x2 26479 | -1/Access | First assault squad dispatched 26601 | -1/Access | Lost 8 parts (5n2u1w) 26634 | -1/Access | Energy Cycler disabled 26676 | -1/Access | Core integrity fell below 50% 26723 | -1/Access | Build established: Mutant 26830 | -1/Access | Spotted B-99 Colossus 26857 | -1/Access | Discovered new exit (range 6) 26859 | *** | Escaped! Last Messages --------------- 26800_ ALERT: Potential suspicious activity detected, Programmers report to Access Zone 4H. 26819_ System corrupted: Matter fused (-7). 26820_ Connecting with Terminal... 26820_ ALERT: Suspicious activity at Terminal A005. Dispatching Investigation squad. 26838_ Slug penetrates Wall. 26838_ Penetrated by Slug. 26841_ Sml. Battery destroyed. 26844_ System corrupted: Energy discharge (-136). 26844_ Particle Reactor destroyed. 26845_ Triggered Alarm Trap. 26845_ An alarm sounds. 26845_ ALERT: Alarm triggered, dispatching investigation squad. 26849_ Sml. Battery destroyed. 26849_ Penetrated by Slug. 26849_ Slug penetrates Wall. 26852_ Penetrated by Slug. 26857_ The Access Shell folds into the floor. 26857_ EXIT=FOUND Map ----- +----------------------------------------------------+ | "" #???? "" ???# #########+#???###/##???????? | | #??? G ?# ######## ##### ######### | | #??? "" / | | #??# " # " | | ###+###??# # ####### ###### ####????? | | ??# #????# ?? ##/###?????#+?????## ##???????? | | ??# #????########## ????????????????# #????????? | | ??# #????? ?? ????????????????# #????????? | | ??# #???? ??? ????????????????# #????????? | | ### ####? "????? ????????????????# #????????? | | # """"????""????????????????# #????????? | | # """"" ??#"?????????????????# #????????? | | + """""?????????????????????# #????""??? | | # """" ?????????????????????# #??""""??? | | # " ????????????????????# # """""?? | | #? ???????????????????# + """""?? | | #? #??????????????????# # | | #??#########??????????????????# #?? | | #?????????????????????????????# #????##### | | #?????????????????????###?????# #????????? | | #????????????########## ####### #????????? | | #????????????" #????????? | | #????????????" k#????????? | | #????????????" #????????? | | ???????????" #????????? | | ?????????" "@ #????????? | | ???????" "" #????????? | | ?????" #????????? | | ######### ???" #????????? | | ????????? "??" """ """ #????????? | | ??????????? "??" """T""" #????????? | | ???????????#######??########## ####### #????????? | | ?????????????????????????????###?????? #????????? | | ?????????????????????????????????????? #????????? | | ?????????????????????????????????????? #????????? | | ?????????????????????????????????????? #????????? | | ?????????????????????????????????????? #????????? | | ?????????????????????????????????????????????????? | | ?????????????????????????????????????????????????? | | ?????????????????????????????????????????????????? | | ?????????????????????????????????????????????????? | | ?????????????????????????????????????????????????? | | ?????????????????????????????????????????????????? | | ?????????????????????????????????????????????????? | | ?????????????????????????????????????????????????? | | ?????????????????????????????????????????????????? | | ?????????????????????????????????????????????????? | | ?????????????????????????????????????????????????? | | ?????????????????????????????????????????????????? | | ?????????????????????????????????????????????????? | +----------------------------------------------------+ Best States ------------- Heat Dissipation 63 Coolant Potential 100 Energy Generation 45 Energy Capacity 600 Matter Stores 800 Matter Capacity 900 Sight Range 22 Terrain Scan Density 10 Jamming Range 16 Additional Mass Support 6 Armor Coverage 600 Resistance: EM 50 Core Shielding 90 Evasion (%) 70 Targeting Accuracy 6 Recoil Reduction 4 Matter Filtering 30 Offensive Hacking 24 Authchip Count 1 Item Schematics ----------------- IN-MT5's Pitchfork "Insurrection" | -9/Scraptown | Archive Mak. Hacking Suite | -6/Factory | Extrapolated Deep Structural Scanner | -6/Factory | Extrapolated Beamcaster | -6/Factory | Extrapolated Energy Deflector | -6/Factory | Extrapolated Mak. Core Shielding | -6/Factory | Extrapolated Mak. Thermal Plating | -6/Factory | Extrapolated Ripper | -6/Factory | Extrapolated Mak. Targeting Computer | -6/Factory | Extrapolated Mak. Coolant Network | -6/Waste | Extrapolated Mak. Power Source | -6/Waste | Extrapolated Mak. Light Armor Plating | -6/Waste | Extrapolated Mak. Medium Armor Plating | -6/Factory | Extrapolated Mak. Ablative Armor | -6/Factory | Extrapolated Mak. Laser | -6/Factory | Extrapolated Adv. KE Penetrator | -3/Testing | Archive Hellfire Missile Launcher | -3/Testing | Archive Imp. Lightning Gun | -3/Testing | Archive Cld. Impulse Thruster | -3/Testing | Archive Robot Schematics ------------------ P-80 Master | -3/Testing | Archive A-02 Transporter | -3/Testing | Archive B-74 Champion | -3/Testing | Archive Y-72 Warden | -3/Testing | Archive K-01 Serf | -3/Testing | Archive Fabricated ------------ IN-MT5's Pitchfork "Insurrection" | x1 | -6/Factory | Authchip IN-MT5's Pitchfork "Insurrection" | x1 | -6/Factory IN-MT5's Pitchfork "Insurrection" | x1 | -5/Factory Repaired ---------- Nothing Studied --------- Imp. Thunder Leg | -3/Research | Hacked Alien Tech Used ----------------- None Achievements -------------- Hammer Time I, Locutus Peasant Uprising Scientist At Large Challenges ------------ None Game ------ Seed DecoderServoBeacon Manual? 0 Play Time 03:35:57 Cumulative 429.7 hours Start 2026.01.23 @ 19:31:08 End 2026.01.25 @ 16:11:51 Sessions 7 Manual Loads 0 Difficulty Rogue Special Mode None Game No. 383 Rogue 347 Adventurer 36 Explorer 0 Win Type 0 Total 17 Types 8/0/9/0/0/0/0/0/0/0 Lore% 72 Gallery% 85 Achievement% 65 Wizard Run 0 Options --------- Layout 0 ASCII 0 Keyboard 0 Movement Mouse Keybinds 0 Fullscreen 1 Font 18/SmallcapsGlow Map View 76x50 Zoom Use 0% Tactical HUD 1 Map Filters NONE Filters NONE Steam 1 RUN: 0dde2a50-8952-4fcc-a744-dfdc6b27f067